bitfinex/quotes_SOLUSD_20250802
["timestamp","ask_amount","ask_price","bid_price","bid_amount"]
[1754158747205,2.535899,158.3,158.23,1.2009078]
[1754158747393,2.535899,158.3,158.24,0.7]
[1754158747581,53.66,158.32,158.29,23.52210991]
[1754158747781,3.97368888,158.31,158.3,0.7]
[1754158748083,3.97368888,158.31,158.3,23.52210991]
[1754158748280,3.97368888,158.31,158.23,0.5009078]
[1754158748281,8.38531446,158.31,158.23,0.5009078]
[1754158748488,57.593689,158.37,158.25,16.78468397]
[1754158748676,57.593689,158.37,158.23,0.5009078]
[1754158748677,4.41336111,158.36,158.23,0.5009078]
[1754158748881,4.41336111,158.35,158.28,23.52210991]
[1754158749109,26.0,158.32,158.3,23.52210991]
[1754158749296,4.4150163,158.31,158.23,0.5009078]
[1754158749606,79.58,158.32,158.23,0.5009078]
[1754158749607,53.58,158.32,158.29,23.52210991]
[1754158749978,53.58,158.33,158.3,23.52210991]
[1754158750192,4.4182796,158.32,158.3,23.52210991]
[1754158750394,4.4182796,158.32,158.23,17.28559177]
[1754158750395,53.58,158.33,158.31,23.52210991]
[1754158750715,0.71,158.38,158.32,23.52210991]
[1754158750716,53.52,158.34,158.32,23.52210991]
[1754158750915,4.41864995,158.33,158.26,16.78468397]
[1754158751216,53.52,158.35,158.26,16.78468397]
[1754158751217,53.52,158.35,158.32,23.52210991]
[1754158751383,4.42164985,158.34,158.28,16.78468397]
[1754158751586,53.48,158.37,158.33,23.52210991]
[1754158751790,4.42292669,158.36,158.33,23.52210991]
[1754158752023,53.48,158.37,158.35,23.52210991]
[1754158752186,4.42136393,158.36,158.28,17.41647573]
[1754158752537,0.03,158.43,158.28,17.41647573]
[1754158752742,4.42476251,158.42,158.38,16.78468397]
[1754158752889,0.03,158.43,158.39,0.63135298]
[1754158753222,53.44,158.5,158.4,16.78468397]
[1754158753387,58.39552954,158.53,158.49,23.52210991]
[1754158753602,9.38719148,158.52,158.44,16.78468397]
[1754158753803,53.44,158.53,158.51,23.52210991]
[1754158754041,53.44,158.53,158.41,16.78468397]
[1754158754042,4.43426829,158.52,158.41,16.78468397]
[1754158754241,58.39552954,158.53,158.51,23.52210991]
[1754158754431,5.665529,158.56,158.43,16.78468397]
[1754158754432,9.39276484,158.52,158.43,16.78468397]
[1754158754598,4.4372353,158.51,158.45,16.78468397]
[1754158754800,4.95552954,158.52,158.46,0.63107408]
[1754158755022,53.4,158.57,158.46,0.63107408]
[1754158755229,4.95552954,158.53,158.47,16.78468397]
[1754158755436,7.660896,158.59,158.47,16.78468397]
[1754158755437,0.2,158.59,158.52,23.52210991]
[1754158755612,4.95552954,158.55,158.49,42.78468397]
[1754158755930,4.95552954,158.58,158.55,16.78468397]
[1754158756112,5.15552954,158.59,158.57,23.52210991]
[1754158756432,5.15552954,158.59,158.56,0.63067608]
[1754158756433,0.2,158.59,158.58,23.52210991]
[1754158756622,4.63876553,158.59,158.58,23.52210991]
[1754158757124,0.2,158.59,158.58,23.52210991]
[1754158757451,4.63622056,158.59,158.52,17.41551919]
[1754158757601,0.2,158.59,158.57,23.52210991]
[1754158758040,0.2,158.59,158.58,23.52210991]
[1754158758948,0.71,158.7,158.59,16.78468397]
[1754158759147,4.43475069,158.69,158.68,23.52210991]
[1754158759307,4.43475069,158.69,158.61,16.78468397]
[1754158759617,79.81,158.71,158.59,26.0]
[1754158759618,4.43475069,158.68,158.59,26.0]
[1754158759864,23.52210991,158.66,158.52,10.0]
[1754158760036,16.78468397,158.69,158.59,23.52210991]
[1754158760037,26.0,158.62,158.59,23.52210991]
[1754158760206,26.0,158.62,158.51,17.41555899]
[1754158760548,26.0,158.62,158.61,23.52210991]
[1754158760749,53.08,158.7,158.61,23.52210991]
[1754158760915,53.08,158.7,158.69,23.52210991]
[1754158761113,57.50479286,158.7,158.69,23.52210991]
[1754158761412,0.71,158.71,158.69,23.52210991]
[1754158761622,0.71,158.71,158.59,0.63055678]
[1754158761623,26.71,158.7,158.59,0.63055678]
[1754158761808,0.71,158.74,158.69,23.52210991]
[1754158762138,98.6,158.75,158.73,23.52210991]
[1754158762340,99.31,158.75,158.73,23.52210991]
[1754158762503,53.02,158.75,158.74,23.52210991]
[1754158762799,52.96,158.81,158.74,23.52210991]
[1754158763000,52.96,158.81,158.65,10.0]
[1754158763001,26.0,158.78,158.76,23.52210991]
[1754158763210,26.71,158.78,158.76,23.52210991]
[1754158763436,52.96,158.81,158.68,0.63019914]
[1754158763437,52.96,158.81,158.77,23.52210991]
[1754158763659,4.40658722,158.8,158.74,16.78468397]
[1754158763860,52.9,158.86,158.79,23.52210991]
[1754158764025,26.0,158.84,158.83,23.52210991]
[1754158764225,28.63938204,158.84,158.69,10.63015943]
[1754158764427,26.0,158.8,158.79,23.52210991]
[1754158764648,26.0,158.82,158.79,23.52210991]
[1754158764962,0.71,158.8,158.76,23.52210991]
[1754158765135,26.0,158.81,158.79,23.52210991]
[1754158765331,26.0,158.81,158.8,23.52210991]
[1754158765535,0.03,158.8,158.79,23.52210991]
[1754158768242,0.74,158.8,158.78,23.52210991]
[1754158768467,0.74,158.8,158.7,0.63011972]
[1754158768765,0.74,158.8,158.76,23.52210991]
[1754158768766,26.0,158.77,158.76,23.52210991]
[1754158769256,26.0,158.77,158.66,17.41496255]
[1754158769257,26.0,158.76,158.66,17.41496255]
[1754158769560,26.0,158.76,158.74,23.52210991]
[1754158769734,26.0,158.76,158.6,23.52210991]
[1754158769735,26.71,158.75,158.72,23.52210991]
[1754158769934,26.0,158.71,158.61,0.63047727]
[1754158770133,26.0,158.71,158.7,23.52210991]
[1754158770358,53.29,158.74,158.7,23.52210991]
[1754158770663,26.0,158.73,158.63,16.78468397]
[1754158770862,26.0,158.71,158.6,23.52210991]
[1754158771164,26.0,158.71,158.68,23.52210991]
[1754158771553,26.66,158.71,158.68,23.52210991]
[1754158771756,26.66,158.71,158.61,0.63047727]
[1754158771950,0.66,158.7,158.68,23.52210991]
[1754158772145,26.0,158.71,158.69,23.52210991]
[1754158772353,26.0,158.71,158.7,23.52210991]
[1754158772968,26.0,158.71,158.65,23.52210991]
[1754158772969,26.66,158.71,158.65,23.52210991]
[1754158773176,0.66,158.7,158.65,23.52210991]
[1754158773333,26.0,158.66,158.65,23.52210991]
[1754158773534,26.0,158.66,158.43,0.06]
[1754158773535,26.66,158.66,158.53,0.63079543]
[1754158773744,0.66,158.65,158.61,23.52210991]
[1754158774043,0.66,158.64,158.61,23.52210991]
[1754158774269,26.0,158.66,158.61,23.52210991]
[1754158774439,26.0,158.66,158.65,23.52210991]
[1754158774881,26.66,158.66,158.65,23.52210991]
[1754158775050,26.0,158.66,158.65,23.52210991]
[1754158775371,52.4,158.68,158.6,23.52210991]
[1754158775372,26.0,158.65,158.6,23.52210991]
[1754158775676,26.0,158.65,158.64,23.52210991]
[1754158776239,26.66,158.65,158.56,0.63067608]
[1754158776471,26.66,158.65,158.62,23.52210991]
[1754158776675,50.18210991,158.64,158.58,23.52210991]
[1754158776863,26.0,158.6,158.58,23.52210991]
[1754158777070,0.66,158.59,158.48,0.63099444]
[1754158777257,26.66,158.59,158.57,23.52210991]
[1754158777576,26.0,158.59,158.58,23.52210991]
[1754158777780,26.0,158.6,158.58,23.52210991]
[1754158777976,26.0,158.6,158.51,16.78468397]
[1754158777977,52.32,158.63,158.59,23.52210991]
[1754158778190,26.0,158.6,158.53,16.78468397]
[1754158778687,26.0,158.6,158.54,0.63075564]
[1754158779389,0.66,158.59,158.49,16.78468397]
[1754158779699,0.66,158.59,158.55,23.52210991]
[1754158779991,26.0,158.55,158.53,23.52210991]
[1754158780196,26.0,158.54,158.53,23.52210991]
[1754158781266,26.0,158.56,158.53,23.52210991]
[1754158781462,26.0,158.54,158.53,23.52210991]
[1754158782271,26.0,158.56,158.53,23.52210991]
[1754158782583,26.0,158.56,158.55,23.52210991]
[1754158784087,26.0,158.6,158.55,23.52210991]
[1754158784293,77.96,158.6,158.58,23.52210991]
[1754158784480,0.66,158.59,158.57,23.52210991]
[1754158784681,0.66,158.63,158.58,23.52210991]
[1754158784989,18.957945,158.73,158.51,0.63087502]
[1754158784990,52.6,158.62,158.6,23.52210991]
[1754158785193,0.66,158.61,158.53,0.63079543]
[1754158785382,26.66,158.61,158.6,23.52210991]
[1754158785572,26.66,158.61,158.53,0.63079543]
[1754158785573,0.66,158.61,158.59,23.52210991]
[1754158785778,26.66,158.6,158.58,23.52210991]
[1754158785980,26.66,158.6,158.59,23.52210991]
[1754158786195,26.66,158.6,158.5,16.78468397]
[1754158786390,77.9,158.59,158.56,23.52210991]
[1754158786569,26.0,158.57,158.56,23.52210991]
[1754158787199,26.0,158.57,158.47,33.52210991]
[1754158787200,26.66,158.57,158.48,0.63099444]
[1754158787366,51.88,158.58,158.56,23.52210991]
[1754158787567,51.88,158.58,158.47,23.52210991]
[1754158787568,26.0,158.58,158.57,23.52210991]
[1754158787796,26.66,158.58,158.56,23.52210991]
[1754158787999,51.88,158.6,158.57,23.52210991]
[1754158788172,77.88,158.64,158.59,23.52210991]
[1754158788509,52.54,158.64,158.63,23.52210991]
[1754158788669,26.0,158.61,158.54,0.63075564]
[1754158789000,26.0,158.61,158.58,23.52210991]
[1754158789188,26.66,158.61,158.59,23.52210991]
[1754158789398,26.66,158.61,158.54,0.63075564]
[1754158789399,26.0,158.61,158.6,23.52210991]
[1754158789707,52.54,158.64,158.6,23.52210991]
[1754158789708,26.0,158.63,158.6,23.52210991]
[1754158789899,26.0,158.63,158.62,23.52210991]
[1754158790084,152.99326354,158.71,158.62,23.52210991]
[1754158790085,0.66,158.7,158.62,23.52210991]
[1754158790393,0.66,158.7,158.69,23.52210991]
[1754158790697,52.46,158.73,158.69,23.52210991]
[1754158790899,52.46,158.73,158.71,23.52210991]
[1754158791080,51.8,158.73,158.72,23.52210991]
[1754158791268,0.03,158.82,158.72,23.52210991]
[1754158791269,0.66,158.76,158.72,23.52210991]
[1754158791468,0.66,158.76,158.65,0.63031831]
[1754158791469,51.8,158.76,158.75,23.52210991]
[1754158791668,52.44,158.79,158.75,23.52210991]
[1754158791902,26.0,158.77,158.76,23.52210991]
[1754158794195,26.0,158.76,158.71,0.63008002]
[1754158794423,26.0,158.76,158.75,23.52210991]
[1754158794627,26.66,158.76,158.75,23.52210991]
[1754158794835,26.66,158.76,158.73,23.52210991]
[1754158795137,0.66,158.75,158.73,23.52210991]
[1754158795324,26.0,158.72,158.65,0.63031831]
[1754158795503,26.0,158.71,158.65,0.63031831]
[1754158795825,26.0,158.71,158.67,23.52210991]
[1754158795826,78.24,158.71,158.67,23.52210991]
[1754158796044,78.24,158.71,158.61,17.41516124]
[1754158796045,0.66,158.7,158.61,0.63047727]
[1754158796337,26.0,158.67,158.61,0.63047727]
[1754158796503,26.0,158.68,158.66,23.52210991]
[1754158796825,26.0,158.68,158.67,23.52210991]
[1754158797445,54.6308006,158.68,158.62,23.52210991]
[1754158797594,54.6308006,158.68,158.56,0.63067608]
[1754158797595,26.0,158.64,158.56,0.63067608]
[1754158797798,26.0,158.64,158.61,23.52210991]
[1754158797799,26.0,158.62,158.61,23.52210991]
[1754158798020,26.0,158.62,158.56,0.63067608]
[1754158798324,26.0,158.62,158.61,23.52210991]
[1754158798524,30.45244042,158.62,158.61,23.52210991]
[1754158799001,30.45244042,158.62,158.5,36.0]
[1754158799002,31.11244042,158.62,158.54,16.78468397]
[1754158799198,4.45244042,158.61,158.59,23.52210991]
[1754158799406,4.45244042,158.6,158.59,23.52210991]
[1754158800426,52.16,158.64,158.59,24.15266669]
[1754158800427,77.5,158.64,158.59,24.15266669]
[1754158800608,4.45794696,158.63,158.59,0.63055678]
[1754158800808,77.5,158.64,158.62,23.52210991]
[1754158801128,77.5,158.64,158.59,0.63055678]
[1754158801129,4.45793608,158.63,158.59,0.63055678]
[1754158801336,0.69,158.7,158.6,16.78468397]
[1754158801631,4.4591535,158.69,158.62,16.78468397]
[1754158801935,4.4591535,158.68,158.64,16.78468397]
[1754158802144,4.4591535,158.67,158.63,0.63039778]
[1754158802350,4.4591535,158.66,158.63,0.63039778]
[1754158802634,26.0,158.68,158.63,0.63039778]
[1754158802802,4.46115531,158.67,158.63,0.63039778]
[1754158802998,4.46115531,158.66,158.63,0.63039778]
[1754158803224,51.28,158.72,158.64,16.78468397]
[1754158803538,77.28,158.72,158.71,23.52210991]
[1754158803741,26.0,158.69,158.61,0.63047727]
[1754158804045,30.46287765,158.68,158.61,0.63047727]
[1754158804247,4.46287765,158.67,158.61,0.63047727]
[1754158804538,4.46287765,158.66,158.61,0.63047727]
[1754158804742,26.0,158.68,158.61,0.63047727]
[1754158804743,4.46287765,158.65,158.61,0.63047727]
[1754158804917,26.0,158.68,158.61,0.63047727]
[1754158805121,4.46223145,158.67,158.61,0.63047727]
[1754158805413,4.46223145,158.66,158.61,0.63047727]
[1754158805614,51.97,158.72,158.65,23.52210991]
[1754158805837,51.97,158.72,158.66,0.63027858]
[1754158805838,4.46315277,158.71,158.66,0.63027858]
[1754158806158,5.15315277,158.7,158.66,0.63027858]
[1754158806327,4.46315277,158.69,158.66,0.63027858]
[1754158806650,4.46315277,158.68,158.66,0.63027858]
[1754158806824,51.77,158.76,158.67,24.15234877]
[1754158807021,9.16883774,158.75,158.73,23.52210991]
[1754158807216,5.15428938,158.74,158.67,0.63023886]
[1754158807525,23.55210991,158.8,158.68,16.78468397]
[1754158807526,4.46428938,158.73,158.68,16.78468397]
[1754158807742,0.69,158.77,158.69,0.63015943]
[1754158807949,26.0,158.74,158.66,0.63027858]
[1754158808119,0.03,158.7,158.67,16.78468397]
[1754158808319,0.03,158.7,158.68,0.63019914]
[1754158808518,0.03,158.7,158.69,16.78468397]
[1754158808770,0.03,158.7,158.69,23.52210991]
[1754158809463,51.76,158.8,158.7,16.78468397]
[1754158809767,51.76,158.8,158.73,23.52210991]
[1754158809768,4.46897253,158.79,158.73,23.52210991]
[1754158810069,0.03,158.8,158.78,23.52210991]
[1754158810244,0.03,158.8,158.74,0.62996094]
[1754158810245,0.72,158.8,158.74,16.78468397]
[1754158810657,0.72,158.8,158.59,19.0]
[1754158810658,0.03,158.68,158.67,26.78468397]
[1754158810961,0.03,158.8,158.68,26.78468397]
[1754158811169,0.03,158.8,158.72,16.78468397]
[1754158811368,0.03,158.8,158.79,23.52210991]
[1754158811583,0.03,158.8,158.68,10.0]
[1754158811584,0.69,158.79,158.68,10.0]
[1754158811780,0.03,158.8,158.79,16.78468397]
[1754158812072,0.03,158.8,158.79,23.52210991]
[1754158812240,0.03,158.8,158.79,40.30679388]
[1754158812462,0.03,158.82,158.8,16.78468397]
[1754158812671,0.03,158.82,158.79,40.30679388]
[1754158812672,0.03,158.82,158.81,40.93647714]
[1754158813175,0.2,158.84,158.83,40.30679388]
[1754158813362,0.2,158.84,158.83,40.93639785]
[1754158814677,0.2,158.84,158.8,0.62972292]
[1754158814860,0.2,158.84,158.83,40.30679388]
[1754158815549,0.2,158.84,158.8,0.62972292]
[1754158815550,0.89,158.84,158.8,0.62972292]
[1754158815747,0.2,158.84,158.83,23.52210991]
[1754158815945,0.89,158.84,158.77,16.78468397]
[1754158816150,0.89,158.84,158.83,23.52210991]
[1754158816689,0.89,158.84,158.78,0.62980224]
[1754158817000,0.69,158.83,158.74,0.62996094]
[1754158817156,0.69,158.83,158.8,23.52210991]
[1754158817356,0.69,158.82,158.74,0.62996094]
[1754158817557,26.0,158.81,158.74,0.62996094]
[1754158817868,0.2,158.84,158.8,23.52210991]
[1754158818093,0.2,158.84,158.83,23.52210991]
[1754158818292,0.2,158.84,158.81,0.62968326]
[1754158818466,0.2,158.84,158.83,23.52210991]
[1754158818660,0.2,158.84,158.83,40.30679388]
[1754158819071,0.69,158.93,158.83,40.30679388]
[1754158819283,26.0,158.92,158.85,16.78468397]
[1754158819469,0.69,158.91,158.9,23.52210991]
[1754158819888,0.69,158.91,158.86,0.62948508]
[1754158820199,26.0,158.92,158.9,23.52210991]
[1754158820406,26.0,158.92,158.86,0.62948508]
[1754158820407,26.0,158.92,158.91,23.52210991]
[1754158820573,26.69,158.92,158.91,23.52210991]
[1754158820899,26.0,158.92,158.91,23.52210991]
[1754158821104,26.69,158.92,158.91,23.52210991]
[1754158821690,26.0,158.92,158.91,23.52210991]
[1754158821869,0.69,158.96,158.91,23.52210991]
[1754158822068,0.69,158.96,158.95,23.52210991]
[1754158822273,0.03,158.99,158.95,23.52210991]
[1754158822599,0.69,158.96,158.92,0.62924742]
[1754158822818,0.69,158.95,158.92,0.62924742]
[1754158823013,0.69,158.95,158.92,23.52210991]
[1754158823014,26.0,158.94,158.92,23.52210991]
[1754158823308,0.03,158.99,158.87,0.62944545]
[1754158823309,0.69,158.93,158.87,0.62944545]
[1754158823509,26.0,158.96,158.88,16.78468397]
[1754158823672,0.69,158.96,158.9,16.78468397]
[1754158823882,0.69,158.96,158.87,0.62944545]
[1754158824324,24.21210991,158.96,158.87,0.62944545]
[1754158824524,26.0,158.93,158.92,23.52210991]
[1754158824880,0.69,158.95,158.89,0.62936622]
[1754158825082,0.69,158.95,158.94,23.52210991]
[1754158825311,0.69,158.95,158.89,0.62936622]
[1754158825518,0.69,158.95,158.93,23.52210991]
[1754158825673,26.69,158.95,158.93,23.52210991]
[1754158825880,0.69,158.94,158.93,23.52210991]
[1754158826180,0.03,158.99,158.93,23.52210991]
[1754158826387,0.03,158.99,158.98,23.52210991]
[1754158826992,0.03,158.99,158.98,40.30679388]
[1754158827188,0.826,159.03,158.99,16.78468397]
[1754158827434,0.826,159.03,159.02,40.30679388]
[1754158827586,0.826,159.03,159.02,40.93564559]
[1754158828527,0.826,159.03,158.92,6.29245581]
[1754158828528,27.516,159.03,159.01,23.52210991]
[1754158828717,27.516,159.03,159.02,23.52210991]
[1754158829115,1.516,159.03,159.02,23.52210991]
[1754158829324,1.516,159.03,158.98,16.78468397]
[1754158829540,24.84096162,159.02,158.9,0.64]
[1754158829705,26.0,159.0,158.97,23.52210991]
[1754158829905,0.69,158.99,158.97,23.52210991]
[1754158830198,26.0,159.0,158.97,23.52210991]
[1754158830399,0.69,159.0,158.91,0.62928701]
[1754158830712,0.69,159.0,158.99,23.52210991]
[1754158831727,26.69,159.0,158.98,23.52210991]
[1754158831910,26.65,159.0,158.99,23.52210991]
[1754158832108,1.476,159.03,158.99,23.52210991]
[1754158832437,26.0,159.01,158.97,16.78468397]
[1754158832927,26.0,159.01,158.98,0.62900993]
[1754158833242,0.826,159.03,158.99,16.78468397]
[1754158833544,0.826,159.03,159.01,16.78468397]
[1754158833758,0.826,159.03,159.02,23.52210991]
[1754158833908,0.826,159.03,159.02,40.30679388]
[1754158834304,0.826,159.03,159.02,17.42468397]
[1754158834532,0.826,159.03,159.02,41.57564559]
[1754158834811,0.186,159.03,159.02,41.57564559]
[1754158835110,0.03,159.05,159.02,41.57564559]
[1754158835327,0.03,159.05,159.04,40.30679388]
[1754158835513,0.03,159.05,159.04,40.93556651]
[1754158839261,0.2,159.11,159.05,16.78468397]
[1754158839462,0.65,159.1,158.94,5.06585079]
[1754158839756,0.65,159.1,159.05,23.52210991]
[1754158839757,26.0,159.07,159.05,23.52210991]
[1754158839952,26.0,159.07,158.95,10.62912865]
[1754158839953,0.65,159.06,158.96,51.06]
[1754158840159,0.65,159.06,158.97,0.6290495]
[1754158840459,24.17210991,159.06,159.01,23.52210991]
[1754158840631,49.52210991,159.03,158.92,51.70924742]
[1754158840834,24.80096162,159.02,158.92,51.70924742]
[1754158841159,24.80096162,159.02,158.93,23.52210991]
[1754158841160,26.0,159.0,158.93,23.52210991]
[1754158841357,24.80096162,158.99,158.88,26.0]
[1754158841570,0.65,158.98,158.94,23.52210991]
[1754158841726,0.62885171,158.99,158.89,0.62936622]
[1754158841727,0.65,158.97,158.96,23.52210991]
[1754158842062,0.65,159.0,158.96,23.52210991]
[1754158842231,0.65,159.0,158.99,23.52210991]
[1754158842433,26.0,159.04,158.99,23.52210991]
[1754158842637,0.65,159.03,159.01,23.52210991]
[1754158842832,0.65,159.02,159.01,23.52210991]
[1754158843158,0.65,159.05,159.01,23.52210991]
[1754158843456,0.65,159.04,159.02,23.52210991]
[1754158843636,0.65,159.03,159.02,23.52210991]
[1754158843828,26.0,159.02,158.97,16.78468397]
[1754158844030,26.0,159.02,158.96,23.52210991]
[1754158844031,24.17210991,159.01,158.96,23.52210991]
[1754158844343,0.65,159.0,158.92,17.41393139]
[1754158844545,0.65,159.0,158.97,23.52210991]
[1754158844747,0.65,158.99,158.92,17.41393139]
[1754158844951,0.65,158.99,158.96,23.52210991]
[1754158845265,0.65,159.04,158.99,16.78468397]
[1754158845565,26.0,159.04,158.99,17.41365434]
[1754158845855,0.65,159.03,159.02,23.52210991]
[1754158846260,0.65,159.03,158.88,6.29396666]
[1754158846261,24.80096162,159.03,158.95,0.62912865]
[1754158846559,24.80096162,159.03,158.93,77.1]
[1754158846560,23.52210991,158.99,158.94,23.52210991]
[1754158846763,0.65,158.98,158.94,23.52210991]
[1754158846944,0.62885171,159.0,158.94,23.52210991]
[1754158846945,0.65,158.97,158.94,23.52210991]
[1754158847145,0.65,158.96,158.95,23.52210991]
[1754158847441,26.0,158.95,158.92,23.52210991]
[1754158847648,0.65,158.94,158.92,23.52210991]
[1754158848038,0.65,158.97,158.9,16.78468397]
[1754158848242,26.0,158.95,158.9,16.78468397]
[1754158848568,26.65,158.98,158.94,23.52210991]
[1754158848742,26.65,158.98,158.96,23.52210991]
[1754158849067,0.65,158.98,158.96,23.52210991]
[1754158849233,26.0,158.98,158.95,23.52210991]
[1754158849558,0.65,158.97,158.95,23.52210991]
[1754158850081,26.0,158.93,158.8,0.76]
[1754158850269,23.52210991,158.88,158.8,0.76]
[1754158850450,0.62885171,158.88,158.83,23.52210991]
[1754158850762,0.65,158.87,158.83,23.52210991]
[1754158850965,0.65,158.86,158.83,23.52210991]
[1754158852033,0.65,158.85,158.8,0.06]
[1754158852349,23.52210991,158.84,158.8,0.06]
[1754158852536,0.65,158.83,158.8,0.06]
[1754158852857,0.65,158.82,158.8,0.06]
[1754158853566,0.65,158.82,158.79,23.14210991]
[1754158853967,0.65,158.81,158.78,23.52210991]
[1754158854893,0.65,158.81,158.77,23.52210991]
[1754158855094,0.65,158.8,158.77,23.52210991]
[1754158855584,26.65,158.86,158.79,23.52210991]
[1754158855758,26.65,158.86,158.81,23.52210991]
[1754158855759,50.80096162,158.86,158.81,23.52210991]
[1754158855961,0.65,158.85,158.8,23.52210991]
[1754158856158,0.65,158.85,158.81,23.52210991]
[1754158856392,0.65,158.85,158.83,23.52210991]
[1754158856393,26.0,158.85,158.83,23.52210991]
[1754158856594,26.0,158.85,158.78,0.7]
[1754158856595,0.62885171,158.88,158.84,23.52210991]
[1754158856891,26.0,158.85,158.82,23.52210991]
[1754158857094,26.0,158.85,158.81,23.52210991]
[1754158857294,26.0,158.85,158.8,17.41440689]
[1754158857295,26.0,158.85,158.82,23.52210991]
[1754158857462,51.47,158.89,158.84,23.52210991]
[1754158857658,26.0,158.86,158.82,0.62964362]
[1754158857895,26.0,158.86,158.82,23.52210991]
[1754158858272,0.65,158.85,158.8,23.52210991]
[1754158858592,0.65,158.84,158.78,17.41448621]
[1754158858763,0.65,158.84,158.8,23.52210991]
[1754158859565,0.65,158.84,158.81,23.52210991]
[1754158859766,24.15096162,158.88,158.82,23.52210991]
[1754158859994,26.0,158.85,158.79,16.78468397]
[1754158860199,50.17210991,158.85,158.79,23.52210991]
[1754158860415,23.52210991,158.82,158.77,23.52210991]
[1754158860698,1.27885171,158.84,158.67,0.7]
[1754158860699,26.0,158.76,158.67,0.7]
[1754158860896,26.0,158.76,158.7,23.52210991]
[1754158860897,0.72,158.75,158.7,23.52210991]
[1754158861065,0.72,158.74,158.7,23.52210991]
[1754158861265,26.0,158.75,158.71,23.52210991]
[1754158861467,26.0,158.74,158.67,0.63023886]
[1754158861672,26.0,158.74,158.61,17.9092578]
[1754158861673,26.0,158.74,158.71,23.52210991]
[1754158861897,0.72,158.77,158.73,23.52210991]
[1754158862200,0.72,158.77,158.72,23.52210991]
[1754158862588,49.52210991,158.74,158.68,23.52210991]
[1754158862775,24.15096162,158.73,158.68,23.52210991]
[1754158862977,0.72,158.72,158.68,23.52210991]
[1754158863501,26.0,158.74,158.7,16.78468397]
[1754158863702,26.0,158.74,158.68,16.78468397]
[1754158863703,26.0,158.74,158.71,23.52210991]
[1754158863883,26.0,158.74,158.68,16.78468397]
[1754158863884,26.0,158.74,158.72,23.52210991]
[1754158864205,0.72,158.74,158.67,16.78468397]
[1754158864404,0.72,158.74,158.7,23.52210991]
[1754158864782,0.72,158.73,158.66,16.88468397]
[1754158864996,1.34885171,158.73,158.68,23.52210991]
[1754158865302,1.34885171,158.73,158.66,0.1]
[1754158865303,23.52210991,158.69,158.66,0.1]
[1754158865495,23.52210991,158.68,158.66,0.1]
[1754158865700,24.24210991,158.72,158.66,23.62210991]
[1754158865906,74.18210991,158.75,158.7,23.52210991]
[1754158866221,26.0,158.71,158.66,16.88468397]
[1754158866374,49.52210991,158.73,158.67,23.52210991]
[1754158866574,0.72,158.71,158.66,0.1]
[1754158866804,0.72,158.7,158.66,23.62210991]
[1754158867010,0.72,158.69,158.66,0.1]
[1754158867982,0.62885171,158.71,158.67,23.52210991]
[1754158868181,0.72,158.7,158.66,23.62210991]
[1754158868599,26.0,158.68,158.66,0.1]
[1754158868799,50.87096162,158.67,158.66,0.1]
[1754158869009,27.34885171,158.67,158.66,0.1]
[1754158870184,50.87096162,158.67,158.66,0.1]
[1754158871701,24.87096162,158.67,158.66,0.1]
[1754158872204,50.87096162,158.67,158.66,0.1]
[1754158873187,27.34885171,158.67,158.66,0.1]
[1754158873388,26.0,158.67,158.66,0.1]
[1754158873585,50.24210991,158.67,158.66,0.1]
[1754158874104,50.24210991,158.67,158.59,0.06]
[1754158874105,49.52210991,158.66,158.59,0.06]
[1754158874300,49.52210991,158.62,158.59,0.06]
[1754158874491,26.0,158.6,158.59,0.06]
[1754158876178,50.24210991,158.6,158.59,0.06]
[1754158876382,50.87096162,158.6,158.59,0.06]
[1754158876586,27.34885171,158.6,158.59,0.06]